bitfinex/quotes_SOLUSD_20250922
["timestamp","ask_amount","ask_price","bid_price","bid_amount"]
[1758513102960,0.1,233.11,233.1,70.78328863]
[1758513105589,0.1,233.11,233.1,68.71216586]
[1758513105868,0.1,233.11,233.1,70.07328863]
[1758513106074,0.1,233.11,233.1,35.63216586]
[1758513106250,0.1,233.11,233.1,68.71216586]
[1758513107245,0.1,233.11,233.1,35.63216586]
[1758513107446,0.1,233.11,233.1,68.71216586]
[1758513109676,0.1,233.11,233.1,69.42216586]
[1758513113661,0.1,233.11,233.1,36.34216586]
[1758513113861,0.1,233.11,233.1,69.42216586]
[1758513114846,0.1,233.11,233.1,68.71216586]
[1758513115073,0.1,233.11,233.1,69.42216586]
[1758513116085,0.1,233.11,233.1,68.71216586]
[1758513117873,0.1,233.11,233.1,35.63216586]
[1758513118063,0.1,233.11,233.1,68.71216586]
[1758513119159,0.1,233.11,233.1,35.63216586]
[1758513119355,0.1,233.11,233.1,68.69216586]
[1758513120374,0.1,233.11,233.1,70.74328863]
[1758513121773,0.1,233.11,233.1,36.99328863]
[1758513121976,0.1,233.11,233.1,70.05328863]
[1758513122585,0.1,233.11,233.1,70.74328863]
[1758513125086,0.1,233.11,233.1,70.05328863]
[1758513125280,0.1,233.11,233.1,70.74328863]
[1758513125781,2.89106435,233.14,233.11,0.14216157]
[1758513125979,2.99038616,233.19,233.14,0.14216157]
[1758513126293,0.1,233.19,233.17,4.28871638]
[1758513126593,0.72,233.18,233.17,4.28871638]
[1758513126876,0.72,233.18,233.17,37.34871638]
[1758513127275,0.1,233.19,233.17,37.34871638]
[1758513127477,0.1,233.19,233.17,4.97871638]
[1758513127677,0.1,233.19,233.17,4.28871638]
[1758513127882,0.1,233.19,233.18,34.56328434]
[1758513128060,0.1,233.19,233.18,38.8518168]
[1758513128381,0.1,233.19,233.18,39.5418168]
[1758513129171,0.1,233.19,233.18,38.18069403]
[1758513129375,0.1,233.19,233.18,39.5418168]
[1758513130491,0.1,233.22,233.18,50.26314796]
[1758513130694,0.1,233.22,233.21,1.50328434]
[1758513130986,0.1,233.22,233.21,34.56328434]
[1758513131564,0.1,233.22,233.21,38.85126512]
[1758513131978,0.1,233.22,233.21,39.53126512]
[1758513132390,0.1,233.22,233.21,38.85126512]
[1758513132575,0.1,233.22,233.21,39.61048397]
[1758513132971,0.1,233.22,233.21,40.29048397]
[1758513133174,0.1,233.22,233.21,7.23048397]
[1758513133378,0.1,233.22,233.21,40.29048397]
[1758513133580,0.1,233.22,233.21,39.61048397]
[1758513133793,0.1,233.22,233.21,40.29048397]
[1758513134976,0.1,233.22,233.21,7.23048397]
[1758513135218,0.1,233.22,233.21,40.29048397]
[1758513136897,0.1,233.22,233.21,53.23683056]
[1758513137074,0.77,233.29,233.21,63.95678253]
[1758513137270,0.77,233.29,233.24,2.12034162]
[1758513137474,0.77,233.29,233.25,33.06]
[1758513137475,0.67,233.28,233.25,33.06]
[1758513137675,0.67,233.27,233.25,33.06]
[1758513137875,0.67,233.26,233.25,33.06]
[1758513138384,0.67,233.28,233.25,33.06]
[1758513138591,0.67,233.27,233.25,33.06]
[1758513139406,0.1,233.29,233.26,4.28706164]
[1758513139610,0.1,233.29,233.27,35.16034162]
[1758513139915,0.1,233.29,233.28,2.12034162]
[1758513140295,0.1,233.29,233.28,33.04]
[1758513140508,0.77,233.29,233.28,33.04]
[1758513140689,0.1,233.29,233.28,33.04]
[1758513141388,0.1,233.29,233.28,37.3266941]
[1758513143193,0.1,233.29,233.28,4.2866941]
[1758513143494,0.1,233.29,233.28,37.3266941]
[1758513143892,0.1,233.29,233.28,7.22919729]
[1758513144106,0.1,233.29,233.28,40.26919729]
[1758513148700,0.1,233.32,233.29,0.14216157]
[1758513148900,0.1,233.32,233.31,2.26250319]
[1758513149400,0.1,233.32,233.31,6.54864609]
[1758513149599,0.8,233.32,233.31,0.14216157]
[1758513149798,0.8,233.32,233.26,34.04034162]
[1758513150098,0.8,233.32,233.28,2.12034162]
[1758513150297,0.1,233.32,233.3,0.14216157]
[1758513150527,0.1,233.32,233.31,33.04]
[1758513150701,0.8,233.32,233.31,33.04]
[1758513151495,0.8,233.32,233.31,37.3261429]
[1758513152623,0.1,233.32,233.31,37.46830447]
[1758513152796,0.1,233.32,233.31,38.18830447]
[1758513153314,0.1,233.32,233.31,37.46830447]
[1758513153821,0.1,233.32,233.31,4.42830447]
[1758513154022,0.1,233.32,233.31,37.46830447]
[1758513154521,0.1,233.32,233.31,4.42830447]
[1758513154725,0.1,233.32,233.31,37.46830447]
[1758513155113,0.8,233.32,233.31,37.46830447]
[1758513155613,0.1,233.32,233.31,37.46830447]
[1758513155809,0.1,233.39,233.34,31.2]
[1758513156019,0.1,233.39,233.38,2.26250319]
[1758513156202,0.1,233.39,233.38,35.32250319]
[1758513156402,0.1,233.39,233.38,33.92216157]
[1758513156703,0.1,233.39,233.38,36.04250319]
[1758513157102,0.1,233.39,233.38,40.3273605]
[1758513157404,0.1,233.39,233.38,7.2673605]
[1758513157604,0.1,233.39,233.38,38.20701888]
[1758513157824,0.1,233.39,233.38,40.3273605]
[1758513158215,0.1,233.39,233.38,37.48701888]
[1758513158422,0.1,233.39,233.38,39.6073605]
[1758513159116,0.8,233.39,233.38,37.52701888]
[1758513159314,0.1,233.39,233.38,4.42701888]
[1758513159706,0.1,233.39,233.38,37.52701888]
[1758513162018,0.8,233.39,233.38,33.08]
[1758513162223,0.8,233.39,233.33,10.71426869]
[1758513162417,0.8,233.39,233.34,35.22034162]
[1758513162612,0.7,233.38,233.34,35.22034162]
[1758513162815,0.7,233.38,233.35,2.12034162]
[1758513163019,0.7,233.38,233.36,33.1]
[1758513163530,0.7,233.38,233.36,37.38517435]
[1758513164227,0.7,233.37,233.36,4.28517435]
[1758513164428,0.7,233.37,233.36,37.38517435]
[1758513165136,0.8,233.39,233.36,37.38517435]
[1758513165942,0.1,233.39,233.36,37.38517435]
[1758513166151,0.7,233.38,233.36,37.38517435]
[1758513166522,0.1,233.39,233.36,37.38517435]
[1758513166751,0.8,233.39,233.36,37.38517435]
[1758513167544,0.8,233.39,233.36,39.50551597]
[1758513168116,0.1,233.39,233.37,2.12034162]
[1758513168335,0.1,233.39,233.38,33.08]
[1758513168727,0.8,233.39,233.38,33.08]
[1758513168932,0.1,233.39,233.38,33.08]
[1758513170731,0.8,233.39,233.38,33.08]
[1758513171044,0.8,233.39,233.38,37.36485731]
[1758513171233,0.1,233.39,233.38,37.36485731]
[1758513172653,0.8,233.39,233.35,12.84407524]
[1758513172842,0.8,233.39,233.33,0.14216157]
[1758513172843,0.7,233.38,233.36,33.04]
[1758513173044,0.1,233.39,233.36,33.04]
[1758513173634,0.8,233.39,233.36,33.04]
[1758513174445,0.7,233.38,233.36,33.04]
[1758513174645,0.7,233.37,233.36,33.04]
[1758513175035,0.8,233.39,233.36,33.04]
[1758513175231,0.7,233.38,233.36,33.04]
[1758513176656,0.7,233.37,233.33,12.96101439]
[1758513176957,0.7,233.37,233.34,33.02]
[1758513177329,0.7,233.37,233.33,0.69]
[1758513177553,0.7,233.37,233.33,33.71]
[1758513177950,0.7,233.37,233.08,47.17481635]
[1758513177951,31.89,233.36,233.27,0.69]
[1758513178152,31.89,233.36,233.25,4.28724544]
[1758513178354,31.89,233.35,233.26,33.1]
[1758513178557,0.69,233.34,233.26,33.79]
[1758513178860,0.69,233.33,233.27,0.69]
[1758513179365,4.97577978,233.33,233.27,0.69]
[1758513180863,0.69,233.33,233.27,0.69]
[1758513181161,0.69,233.33,233.25,33.08]
[1758513181365,0.69,233.32,233.25,33.08]
[1758513181663,0.69,233.31,233.25,33.08]
[1758513181841,0.69,233.3,233.23,0.69]
[1758513182167,0.69,233.3,233.22,33.1]
[1758513182343,4.2861429,233.31,233.21,4.97783863]
[1758513182546,0.69,233.29,233.22,33.1]
[1758513182735,0.69,233.28,233.22,33.1]
[1758513182938,0.69,233.27,233.16,0.69]
[1758513183133,3.57086391,233.27,233.16,28.73]
[1758513183470,4.28724544,233.25,233.16,33.01883874]
[1758513183642,0.69,233.24,233.1,2.12034162]
[1758513183961,0.69,233.23,233.14,0.69]
[1758513184260,31.2,233.22,233.12,0.69]
[1758513184557,0.69,233.21,233.12,0.69]
[1758513184930,0.69,233.21,233.13,0.69]
[1758513185134,31.89,233.21,233.13,0.69]
[1758513185559,31.89,233.21,233.14,4.28926825]
[1758513186138,23.75320044,233.29,233.15,0.69]
[1758513186361,0.69,233.28,233.17,2.12034162]
[1758513186541,0.69,233.28,233.18,2.81034162]
[1758513186737,31.2,233.27,233.18,2.81034162]
[1758513186941,31.2,233.27,233.19,0.69]
[1758513187246,0.69,233.26,233.19,0.69]
[1758513187443,0.69,233.26,233.17,33.87]
[1758513187658,0.69,233.25,233.18,4.97853246]
[1758513189472,31.2,233.27,233.2,4.28816466]
[1758513189649,31.2,233.28,233.21,0.69]
[1758513189849,0.69,233.3,233.21,2.81034162]
[1758513190050,0.69,233.32,233.22,2.81034162]
[1758513190245,0.69,233.32,233.24,0.14216157]
[1758513190454,0.68,233.35,233.25,2.79034162]
[1758513190751,0.68,233.35,233.26,0.67]
[1758513191470,0.68,233.35,233.27,4.28687786]
[1758513191767,31.88,233.35,233.27,4.95687786]
[1758513193977,0.68,233.37,233.29,1.35663517]
[1758513194275,0.68,233.37,233.3,0.67]
[1758513194467,0.68,233.37,233.3,2.02663517]
[1758513194770,31.2,233.38,233.31,0.67]
[1758513195078,0.1,233.39,233.31,0.67]
[1758513195373,0.1,233.39,233.33,1.35663517]
[1758513195677,0.78,233.39,233.31,0.81216157]
[1758513195858,0.1,233.39,233.32,33.42]
[1758513196055,0.1,233.39,233.33,15.67021428]
[1758513196861,0.1,233.39,233.33,4.95577551]
[1758513199477,0.1,233.39,233.34,0.67]
[1758513199674,0.1,233.39,233.35,0.67]
[1758513200378,0.1,233.39,233.35,4.95536195]
[1758513201963,0.1,233.39,233.35,0.67]
[1758513203195,0.1,233.39,233.35,4.95539411]
[1758513204380,0.1,233.39,233.36,0.67]
[1758513204854,0.1,233.39,233.35,4.28539411]
[1758513205051,0.1,233.39,233.35,4.95539411]
[1758513205860,0.1,233.39,233.36,0.67]
[1758513206981,0.1,233.39,233.33,4.28577551]
[1758513207371,0.1,233.39,233.34,0.69]
[1758513207582,0.1,233.39,233.35,0.69]
[1758513207775,0.1,233.39,233.33,4.28577551]
[1758513207982,0.1,233.39,233.34,0.69]
[1758513209085,0.1,233.39,233.35,4.28540818]
[1758513209264,0.1,233.39,233.36,0.69]
[1758513209678,0.1,233.39,233.37,1.35663517]
[1758513209893,0.1,233.39,233.38,2.18879674]
[1758513211476,0.1,233.39,233.38,6.47365405]
[1758513212575,0.1,233.39,233.38,39.79365405]
[1758513213771,0.1,233.39,233.38,5.11701888]
[1758513213984,0.1,233.39,233.38,38.45701888]
[1758513214178,0.1,233.39,233.38,6.47365405]
[1758513214377,0.1,233.39,233.38,39.81365405]
[1758513214789,0.1,233.39,233.38,5.11701888]
[1758513214979,0.1,233.39,233.38,38.45701888]
[1758513215181,0.1,233.39,233.38,4.28485731]
[1758513215367,0.81,233.39,233.35,4.28539499]
[1758513215894,0.75,233.39,233.34,33.34]
[1758513216192,0.75,233.39,233.34,34.03]
[1758513217586,0.04,233.39,233.34,33.34]
[1758513217807,0.75,233.39,233.34,34.03]
[1758513218100,0.75,233.39,233.35,4.28540818]
[1758513218690,0.71,233.38,233.33,37.66562094]
[1758513218885,0.71,233.38,233.33,4.97562094]
[1758513219066,0.04,233.39,233.33,4.97562094]
[1758513219067,0.04,233.39,233.33,37.66562094]
[1758513219271,0.04,233.39,233.34,0.69]
[1758513219481,0.04,233.39,233.35,0.69]
[1758513220488,0.04,233.39,233.34,33.38]
[1758513220691,0.04,233.39,233.35,0.69]
[1758513221386,0.04,233.39,233.36,0.69]
[1758513221879,0.04,233.39,233.34,37.66558023]
[1758513222081,0.04,233.39,233.36,4.28522454]
[1758513222396,0.04,233.39,233.36,4.97522454]
[1758513223300,0.04,233.39,233.36,0.69]
[1758513224492,0.04,233.39,233.36,4.97511645]
[1758513224994,0.04,233.39,233.36,4.28511645]
[1758513225500,0.04,233.39,233.34,38.35546428]
[1758513225692,0.04,233.39,233.35,0.69]
[1758513226377,0.04,233.39,233.36,0.69]
[1758513226786,0.04,233.39,233.36,4.97512299]
[1758513227275,0.04,233.39,233.37,0.69]
[1758513227815,0.04,233.39,233.37,34.01]
[1758513227991,0.04,233.39,233.37,33.32]
[1758513228290,0.04,233.39,233.38,0.69]
[1758513228679,0.04,233.39,233.38,4.97485731]
[1758513233883,0.04,233.39,233.38,38.25485731]
[1758513234597,0.04,233.39,233.38,4.97485731]
[1758513234904,0.04,233.39,233.38,38.25485731]
[1758513236577,0.04,233.39,233.38,4.28485731]
[1758513236781,0.04,233.39,233.38,33.28]
[1758513236982,0.04,233.39,233.38,37.56485731]
[1758513240412,0.04,233.39,233.38,38.26485731]
[1758513240783,0.04,233.39,233.38,37.56485731]
[1758513240988,0.04,233.39,233.38,38.26485731]
[1758513242095,0.04,233.39,233.38,4.98485731]
[1758513242304,0.04,233.39,233.38,37.52485731]
[1758513242502,0.04,233.39,233.38,38.22485731]
[1758513244109,0.04,233.39,233.38,37.52485731]
[1758513244617,0.73,233.39,233.33,0.84216157]
[1758513244911,0.73,233.39,233.34,33.22]
[1758513245105,0.73,233.39,233.34,33.92]
[1758513246123,0.69,233.38,233.31,0.7]
[1758513246412,0.69,233.38,233.31,33.22]
[1758513246591,0.69,233.37,233.31,33.24]
[1758513246792,0.69,233.36,233.31,33.24]
[1758513246993,0.69,233.35,233.31,33.24]
[1758513248406,0.69,233.35,233.31,37.52613569]
[1758513248897,4.28509194,233.37,233.31,4.98613569]
[1758513249103,0.69,233.35,233.32,33.24]
[1758513249498,0.69,233.38,233.32,33.94]
[1758513249810,0.69,233.37,233.32,33.94]
[1758513250108,2.88771611,233.38,233.32,37.52592238]
[1758513250312,4.3247162,233.39,233.32,37.52590127]
[1758513250514,7.21243231,233.39,233.32,37.52590127]
[1758513250725,0.04,233.39,233.33,0.69]
[1758513250905,0.04,233.39,233.34,33.22]
[1758513251218,0.04,233.39,233.35,0.69]
[1758513251410,0.04,233.39,233.35,2.04663517]
[1758513251797,0.04,233.39,233.36,33.93]
[1758513251998,0.04,233.39,233.37,4.28504092]
[1758513252198,0.04,233.39,233.37,4.97504092]
[1758513252608,0.04,233.39,233.35,0.69]
[1758513252817,0.04,233.39,233.36,33.24]
[1758513253124,0.04,233.39,233.36,0.69]
[1758513254618,0.04,233.39,233.37,4.28504092]
[1758513254807,0.04,233.39,233.37,4.97504092]
[1758513255016,0.04,233.39,233.36,33.24]
[1758513255328,0.04,233.39,233.37,0.14216157]
[1758513255516,0.04,233.39,233.38,0.69]
[1758513255721,0.04,233.39,233.38,33.97]
[1758513256014,0.04,233.39,233.38,36.23058338]
[1758513256338,2.88771611,233.48,233.39,0.14216157]
[1758513256496,0.1,233.49,233.42,0.14216157]
[1758513256702,0.1,233.49,233.44,2.26058338]
[1758513257222,0.1,233.49,233.45,0.69]
[1758513257418,0.1,233.49,233.46,0.69]
[1758513257621,0.1,233.49,233.47,33.38]
[1758513257795,0.1,233.49,233.47,37.66318598]
[1758513258328,0.78,233.49,233.47,33.38]
[1758513258499,0.78,233.49,233.45,4.2834636]
[1758513258700,0.78,233.49,233.45,37.6634636]
[1758513258929,0.78,233.49,233.45,38.3534636]
[1758513258930,0.1,233.49,233.45,38.3534636]
[1758513259257,0.78,233.49,233.45,33.38]
[1758513259397,0.68,233.48,233.43,33.38]
[1758513259594,0.68,233.47,233.43,33.38]
[1758513260235,0.68,233.47,233.43,34.07]
[1758513260398,4.38287014,233.49,233.43,34.07]
[1758513260399,5.06287014,233.49,233.43,34.07]
[1758513261615,0.1,233.49,233.44,0.69]
[1758513261814,0.68,233.48,233.43,33.38]
[1758513262011,0.68,233.48,233.43,34.07]
[1758513262202,0.68,233.48,233.43,0.69]
[1758513262604,0.68,233.47,233.38,0.14216157]
[1758513262812,0.68,233.47,233.4,0.69]
[1758513263402,4.9633621,233.47,233.4,4.97448079]
[1758513264816,7.84659556,233.47,233.4,4.97448079]
[1758513265018,4.2833621,233.47,233.39,33.4]
[1758513265229,0.68,233.46,233.38,4.97469946]
[1758513265412,0.68,233.46,233.39,33.4]
[1758513266226,4.28357249,233.45,233.38,4.97469946]
[1758513266524,4.28357249,233.45,233.39,33.4]
[1758513266717,4.28357249,233.45,233.38,38.35469946]
[1758513266915,4.28357249,233.45,233.38,4.97469946]
[1758513267118,4.98357249,233.45,233.38,38.35469946]
[1758513267314,36.18357249,233.45,233.38,0.69]
[1758513267522,36.18357249,233.45,233.38,33.38]
[1758513267721,0.7,233.44,233.38,33.38]
[1758513268324,0.7,233.44,233.38,34.05]
[1758513268521,0.7,233.44,233.38,0.67]
[1758513268722,0.7,233.44,233.38,4.95476196]
[1758513268915,2.88366625,233.44,233.39,0.67]
[1758513269124,2.88351447,233.44,233.4,0.67]
[1758513269423,7.16739412,233.44,233.4,0.67]
[1758513270728,4.28387965,233.44,233.4,0.67]
[1758513271326,7.16761438,233.44,233.4,0.67]
[1758513271520,7.86761438,233.44,233.38,0.67]
[1758513271824,0.7,233.43,233.35,34.01]
[1758513272418,0.7,233.43,233.36,0.67]
[1758513272722,4.28412304,233.42,233.36,0.67]
[1758513272921,0.7,233.41,233.34,0.67]
[1758513273121,3.58373473,233.41,233.34,0.67]
[1758513274222,4.28449014,233.4,233.34,0.67]
[1758513274423,4.98449014,233.4,233.34,0.67]
[1758513274832,2.88373473,233.41,233.35,0.14216157]
[1758513275035,0.1,233.49,233.38,2.11842181]
[1758513275036,46.19369661,233.46,233.38,2.11842181]
[1758513275245,132.2,233.47,233.39,0.67]
[1758513275246,2.88347697,233.45,233.39,0.67]
[1758513275435,0.7,233.45,233.39,0.67]
[1758513276725,0.7,233.45,233.39,4.95459304]
[1758513277035,0.8,233.49,233.4,2.93058338]
[1758513277240,0.8,233.49,233.41,0.67]
[1758513277852,0.1,233.49,233.41,0.67]
[1758513278137,0.1,233.49,233.42,4.28412304]
[1758513278327,0.1,233.49,233.43,0.67]
[1758513279126,0.1,233.49,233.43,2.78842181]
[1758513279829,0.1,233.49,233.44,0.67]
[1758513280130,0.1,233.49,233.45,4.28357249]
[1758513280341,0.1,233.49,233.45,4.95357249]
[1758513281144,0.1,233.49,233.46,0.67]
[1758513281621,0.1,233.49,233.47,0.67]
[1758513282542,0.1,233.49,233.48,0.67]
[1758513283553,0.1,233.49,233.46,4.28334151]
[1758513283736,0.1,233.49,233.47,0.67]
[1758513285445,0.7,233.48,233.43,0.67]
[1758513285618,0.7,233.47,233.43,0.67]
[1758513286221,0.7,233.47,233.41,0.81216157]
[1758513286421,5.08292663,233.49,233.42,0.67]
[1758513287853,5.08292663,233.49,233.41,0.67]
[1758513288946,5.08292663,233.49,233.41,4.95412614]
[1758513289143,0.7,233.48,233.41,4.95412614]
[1758513289848,0.7,233.48,233.41,0.67]
[1758513290031,0.7,233.48,233.41,4.9542755]
[1758513290748,0.7,233.47,233.41,4.9542755]
[1758513291246,4.98321791,233.47,233.41,4.9542755]
[1758513292346,4.38288702,233.49,233.42,0.67]
[1758513292740,5.08288702,233.49,233.42,0.67]
[1758513293534,0.7,233.48,233.41,0.67]
[1758513293840,0.7,233.48,233.42,0.14216157]
[1758513294043,3.58314352,233.48,233.4,4.28444032]
[1758513294232,7.26606347,233.49,233.4,4.28444032]
[1758513294427,7.26606347,233.49,233.39,0.67]
[1758513294428,0.7,233.48,233.39,0.67]
[1758513294830,0.7,233.48,233.37,0.14216157]
[1758513294831,3.58314352,233.48,233.37,0.14216157]
[1758513295034,36.22314352,233.47,233.36,0.67]
[1758513295251,3.58314352,233.46,233.36,0.67]
[1758513295547,4.28357249,233.45,233.36,0.67]
[1758513295738,0.7,233.44,233.36,0.67]
[1758513295940,0.7,233.44,233.34,4.28543271]
[1758513296141,0.7,233.43,233.35,0.67]
[1758513296650,0.7,233.43,233.35,2.78842181]
[1758513296849,4.98396854,233.43,233.36,4.95522454]
[1758513298744,4.28396854,233.43,233.36,4.95522454]
[1758513298950,4.96428002,233.42,233.36,0.67]
[1758513300246,4.96428002,233.42,233.33,0.67]
[1758513300631,7.84742354,233.42,233.33,0.67]
[1758513301451,18.55773114,233.42,233.33,4.95571705]
[1758513301645,3.56314352,233.41,233.33,4.95571705]
[1758513301849,0.68,233.4,233.33,4.28571705]
[1758513302061,0.68,233.39,233.31,5.0982779]
[1758513302238,0.68,233.38,233.31,4.28611633]
[1758513302441,0.68,233.37,233.31,4.28611633]
[1758513304147,4.96505835,233.37,233.3,12.79459866]
[1758513304354,4.96505835,233.37,233.31,0.67]
[1758513305350,4.96505835,233.37,233.31,4.95607952]
[1758513305834,4.96505835,233.37,233.31,0.67]
[1758513306859,31.2,233.36,233.26,4.95688702]
[1758513307168,0.68,233.39,233.32,2.11842181]
[1758513307358,4.96468417,233.39,233.33,4.95577551]
[1758513307668,4.96468417,233.39,233.33,0.67]
[1758513307836,0.68,233.38,233.33,0.67]
[1758513308029,0.68,233.38,233.3,4.95618762]
[1758513308230,0.68,233.37,233.3,4.95618762]
[1758513308446,0.68,233.36,233.3,0.67]
[1758513308653,31.88,233.36,233.27,0.67]
[1758513308852,2.88378834,233.35,233.27,0.67]
[1758513309033,3.56378834,233.35,233.27,0.67]
[1758513309351,38.30508929,233.37,233.28,2.11842181]
[1758513309555,34.76289617,233.36,233.29,0.67]
[1758513309736,31.88,233.36,233.29,0.67]
[1758513310644,36.16529327,233.36,233.29,4.95638012]
[1758513311448,0.71,233.35,233.29,4.95638012]
[1758513312160,0.71,233.34,233.27,0.69]
[1758513312362,0.71,233.34,233.27,2.80842181]
[1758513312548,0.71,233.34,233.28,0.69]
[1758513313358,0.71,233.34,233.28,4.97661524]
[1758513315239,0.71,233.34,233.28,4.28661524]
[1758513315440,0.71,233.34,233.29,4.97644719]
[1758513315639,0.71,233.34,233.29,4.28644719]
[1758513315853,0.71,233.34,233.3,0.69]
[1758513316965,0.71,233.34,233.3,4.97630011]
[1758513317546,0.71,233.34,233.3,0.69]
[1758513318640,0.71,233.34,233.3,4.97630614]
[1758513319749,33.3,233.37,233.3,0.69]
[1758513320062,4.99539933,233.36,233.3,0.69]
[1758513321466,4.99539933,233.36,233.29,4.97649119]
[1758513322170,0.71,233.35,233.29,4.97649119]
[1758513324368,4.99549716,233.35,233.29,4.97649119]
[1758513324588,0.71,233.34,233.29,0.69]
[1758513324874,0.71,233.33,233.29,0.69]
[1758513325184,0.71,233.33,233.28,4.28667859]
[1758513325348,0.71,233.33,233.29,0.69]
[1758513325753,0.71,233.33,233.28,4.28667859]
[1758513325948,0.71,233.32,233.22,0.14216157]
[1758513326145,0.71,233.32,233.24,0.69]
[1758513326992,4.2861429,233.31,233.24,0.69]
[1758513327164,35.4861429,233.31,233.24,0.69]
[1758513327483,0.68,233.3,233.24,0.69]
[1758513328880,0.68,233.3,233.24,4.97741193]
[1758513329179,0.68,233.3,233.25,4.9671335]
[1758513329380,35.4861429,233.31,233.26,0.68]
[1758513329684,0.68,233.33,233.27,0.68]
[1758513330745,4.28595919,233.32,233.27,0.68]
[1758513330950,4.96595919,233.32,233.27,0.68]
[1758513331950,0.68,233.31,233.27,0.68]
[1758513332269,0.68,233.31,233.25,4.28723013]
[1758513332455,0.68,233.31,233.25,0.68]
[1758513333654,4.96632003,233.31,233.25,4.96720313]
[1758513333856,4.28632003,233.31,233.25,4.28720313]
[1758513334055,4.96632003,233.31,233.25,0.68]
[1758513334463,0.68,233.31,233.28,1.35646945]
[1758513334672,0.68,233.31,233.3,1.35646945]
[1758513335372,0.68,233.31,233.27,0.14216157]
[1758513335580,0.68,233.31,233.29,1.35646945]
[1758513335879,0.68,233.31,233.3,4.28632661]
[1758513337476,132.2,233.36,233.3,4.28632661]
[1758513337669,136.48526996,233.36,233.3,4.28632661]
[1758513337869,2.88289022,233.35,233.25,0.14216157]
[1758513338076,2.88289022,233.35,233.25,5.64371489]
[1758513338262,2.88289022,233.35,233.23,5.64392477]
[1758513338464,31.2,233.33,233.23,4.28745532]
[1758513338664,2.88289022,233.32,233.23,5.64392477]
[1758513338876,36.12289022,233.32,233.23,5.64392477]
[1758513339077,2.88289022,233.31,233.23,5.64392477]
[1758513339463,7.16921524,233.31,233.23,5.64392477]
[1758513339664,4.28632502,233.31,233.23,5.64392477]
[1758513340485,4.28632502,233.31,233.23,4.28745532]
[1758513340985,4.28632502,233.31,233.23,5.64392477]
[1758513341663,2.88289022,233.32,233.24,1.35646945]
[1758513342065,2.88289022,233.32,233.27,1.35646945]
[1758513342365,12.82290502,233.33,233.24,0.14216157]
[1758513342673,196.64,233.36,233.28,1.35646945]
[1758513342881,2.88583276,233.35,233.28,1.35646945]
[1758513343187,2.88583276,233.35,233.3,1.35646945]
[1758513343393,132.2,233.36,233.31,1.35646945]
[1758513343596,132.2,233.36,233.32,4.28595919]
[1758513344079,132.2,233.36,233.32,5.64242864]
[1758513344795,132.2,233.36,233.32,4.28595919]
[1758513344967,132.2,233.36,233.3,5.6426217]
[1758513347585,132.2,233.36,233.3,4.28615225]
[1758513347791,2.88776128,233.35,233.29,5.64294376]
[1758513348091,2.62158146,233.35,233.29,5.64294376]
[1758513348295,2.62158146,233.35,233.29,4.28647431]
[1758513350184,2.62158146,233.35,233.28,4.2866941]
[1758513351187,6.90699535,233.35,233.28,4.2866941]